{"text_format":"3","workbook":"xlsx","n_sheets":1,"sheets":["PRICING SCHEDULE"],"not_rendered":{"images":1,"defined_names":3},"read":"whole","date_system":"1900"}

{"sheet":"PRICING SCHEDULE","index":0,"n_rows":39,"n_cols":23,"rows_kept":39,"merged":[[11,2,11,3],[12,2,12,3],[12,5,14,5],[13,2,13,3],[14,2,14,3],[16,4,16,6],[16,7,16,9],[16,10,16,12],[16,13,16,15],[16,16,16,18],[35,1,38,1],[35,2,35,3],[35,4,35,5],[36,2,36,3],[36,4,36,5],[37,2,37,3],[37,4,37,5],[38,2,38,3],[38,4,38,5]]}
[null,"SUPPLY CHAIN MANAGEMENT"]
[null,"Pricing schedule"]
["RFB No","RFB 3216-2025"]
["RFB Title","REQUEST FOR BID FOR THE APPOINTMENT OF A SERVICE PROVIDER FOR THE ONCE-OFF REPLACEMENT OF THE EXISTING ELEVATOR AND THE PROVISION OF FIVE (5) YEARS OF MAINTENANCE SERVICES AT THE SITA ERASMUSKLOOF BUILDING."]
["Bidder Name "]
[]
["(a)  Bidder must complete/enter YELLOW cells only"]
["(b)  Unit and Line prices must be VAT EXCLUSIVE and in South African Rand (ZAR) currency."]
["(c) The price must include all cost to deliver the goods or render the service, including all applicable taxes, duty fees, logistics/delivery, storage, labour, overtime and subsistance and travel"]
["(d)  Prices that are dependent on Rate of Exchange (ROE) must use ROE indicated below, then enter in Column \"Forex %\" the percentage of the price that is ROE dependent (0% means the price is not ROE dependent)"]
[]
[null,"Foreign currency","South African Rand (ZAR) exchange rate "]
[null,"1 US Dollar",{"v":16.06,"d":"R16.06"},null,null,"Mark with an X, which ROE is applicable"]
[null,"1 Euro",{"v":18.95,"d":"R18.95"}]
[null,"1 Pound (UK)",{"v":21.69,"d":"R21.69"}]
[]
[{"$nulls":4},"YEAR 1",null,null,"YEAR 2",null,null,"YEAR 3",null,null,"YEAR 4",null,null,"YEAR 5",null,null,"TOTAL"]
["Item No","Goods/Service description","Unit of measure","Forex %","Qty ","Unit Price \n(Excl VAT)","Line Price Y1","Qty ","Unit Price \n(Excl VAT)","Line Price Y2","Qty ","Unit Price \n(Excl VAT)","Line Price Y3","Qty ","Unit Price \n(Excl VAT)","Line Price Y4","Qty ","Unit Price \n(Excl VAT)","Line Price Y5","Line Price Term \n(Excl VAT)","Forex Price portion","BRAND / MODEL","Price clarification comment"]
[1,"Removal and Decommissioning of the existing elevator system, including cab, control systems, and associated machinery.","Each",{"v":0,"d":"0%"},1,null,{"$f":"F19*E19","v":0},{"$nulls":12},{"$f":"G19","v":0}]
[2,"Environmentally compliant disposal of the outdated parts and hazardous materials","Each",{"v":0,"d":"0%"},1,null,{"$f":"F20*E20","v":0},{"$nulls":12},{"$f":"G20","v":0}]
[3,"Supply and Delivery of the new complete elevator system","Each",{"v":0,"d":"0%"},1,null,0,{"$nulls":12},{"$f":"G21","v":0}]
[4,"Installation of the Elevator","Each",{"v":0,"d":"0%"},1,null,0,{"$nulls":12},0]
[5,"Testing and Commissioning","Each",{"v":0,"d":"0%"},1,null,0,{"$nulls":12},0]
[6,"Maintenance and Support","Monthly",{"v":0,"d":"0%"},12,null,0,12,null,{"$f":"I24*H24","v":0},12,null,{"$f":"L24*K24","v":0},12,null,{"$f":"O24*N24","v":0},12,null,{"$f":"R24*Q24","v":0},{"$f":"S24+P24+M24+J24+G24","v":0}]
[7,"Extended Warranty","Monthly",{"v":0,"d":"0%"},0,null,0,12,null,0,12,null,0,12,null,0,12,null,0,{"$f":"S25+P25+M25+J25+G25","v":0}]
[8,"Call-out fees","Instance",{"v":0,"d":"0%"},10,null,{"$f":"F26*E26","v":0},10,null,{"$f":"I26*H26","v":0},10,null,{"$f":"L26*K26","v":0},10,null,0,10,null,{"$f":"R26*Q26","v":0},{"$f":"S26+P26+M26+J26+G26","v":0}]
[9,"Labour – Technician and Assistant during normal hours (08:00 to 17:00). \nThis rate will be applicable from time of arrival to site, up to time of leaving the site.","Hours",{"v":0,"d":"0%"},50,null,0,50,null,{"$f":"I27*H27","v":0},50,null,0,50,null,0,50,null,0,0,null,null,"Note that the quantities indicated below are only for evaluation purposes and \nto determine the contract unit rates. The final quantities will be based on works orders."]
[10,"Labour – Technician and Assistant uring afterhours (Weekdays 17:00 to 08:00 and Saturdays 00:00 to 23:59). \nThis rate will be applicable from time of arrival to site, up to time of leaving the site.","Hours",{"v":0,"d":"0%"},30,null,0,30,null,0,30,null,0,30,null,0,30,null,0,0,null,null,"Note that the quantities indicated below are only for evaluation purposes and \nto determine the contract unit rates. The final quantities will be based on works orders."]
[11,"Labour – Technician and Assistant during afterhours (Sundays 00:00 to 23:59). \nThis rate will be applicable from time of arrival to site, up to time of leaving the site.","Hours",{"v":0,"d":"0%"},20,null,0,20,null,0,20,null,0,20,null,0,20,null,0,0,null,null,"Note that the quantities indicated below are only for evaluation purposes and \nto determine the contract unit rates. The final quantities will be based on works  orders."]
[12,"Contigency ","Instance",{"v":0,"d":"0%"},1,null,{"$f":"F30","v":0},{"$nulls":12},{"$f":"S30+P30+M30+J30+G30","v":0}]
[null,"TOTAL BID PRICE  (EXCL VAT)",{"$nulls":4},{"$f":"SUM(G19:G30)","v":0},null,null,{"$f":"SUM(J19:J29)","v":0},null,null,{"$f":"SUM(M19:M29)","v":0},null,null,{"$f":"SUM(P19:P29)","v":0},null,null,{"$f":"SUM(S19:S29)","v":0},{"$f":"SUM(T19:T30)","v":0}]
[null,"VAT (@15%)",{"$nulls":4},{"$f":"G31*0.15","v":0},null,null,{"$f":"J31*0.15","v":0},null,null,{"$f":"M31*0.15","v":0},null,null,{"$f":"P31*0.15","v":0},null,null,{"$f":"S31*0.15","v":0},{"$f":"T31*0.15","v":0}]
[null,"TOTAL  BID PRICE (INCL VAT)",{"$nulls":4},{"$f":"G31+G32","v":0},null,null,{"$f":"J31+J32","v":0},null,null,{"$f":"M31+M32","v":0},null,null,{"$f":"P31+P32","v":0},null,null,{"$f":"S31+S32","v":0},{"$f":"T31+T32","v":0}]
[]
[]
[null,"I, the bidder, confirm that the price(s) and rate(s) quoted cover all the goods and/or works specified in the bidding documents; that the price(s) or rate(s) cover all my obligations and I accept that any mistakes regarding price(s), rate(s) or calculations will be at my own risk.\n[Note: First convert to PDF, then add signature]"]
[null,null,"Name",null,"Capacity"]
[]
[null,null,"Signature (above)",null,"Date"]